[Event "Sabadell Open 2018"]
[Site "Sabadell"]
[Date "2018.09.10"]
[Round "9"]
[White "Serentill Tost, Eduard"]
[Black "Puente Fernandez, Lucas"]
[Result "1/2-1/2"]
[ECO "C13"]
[WhiteElo "1613"]
[BlackElo "1485"]
[Annotator "NA RC"]
[PlyCount "149"]
[EventDate "2018.09.01"]
[EventType "swiss"]
[EventCountry "ESP"]
[SourceTitle "playchess.com"]
[Source "ChessBase"]
[SourceQuality "1"]
[TimeControl "5400+30"]

1. e4 {[%emt 0:00:00]} e6 {[%emt 0:00:00]} 2. d4 {[%emt 0:00:12]} d5 {[%emt 0:00:00]} 3. Nc3 {[%emt 0:00:29]} Nf6 {[%emt 0:00:41]} 4. Bg5 {[%emt 0:00:45]} dxe4 {[%emt 0:01:07]} 5. Nxe4 {[%emt 0:00:42]} Be7 {[%emt 0:00:45]} 6. Bxf6 {[%emt 0:01:15]} Bxf6 {[%emt 0:00:08]} 7. Nf3 {[%emt 0:01:28]} O-O {[%emt 0:05:02]} 8. Qd2 {[%emt 0:01:43]} b6 {[%emt 0:03:21]} 9. O-O-O {[%emt 0:01:13]} Bb7 {[%emt 0:02:19]} 10. Qf4 {[%emt 0:01:13]} Qe7 {[%emt 0:18:59]} 11. Nxf6+ {[%emt 0:00:33]} Qxf6 {[%emt 0:02:49]} 12. Qxf6 {[%emt 0:00:26]} gxf6 {[%emt 0:00:07]} 13. Be2 {[%emt 0:00:37]} Nd7 {[%emt 0:02:29]} 14. h4 {[%emt 0:06:52]} Kg7 {[%emt 0:03:57]} 15. g4 {[%emt 0:01:08]} e5 {[%emt 0:02:06]} 16. Rh3 {[%emt 0:01:41]} Rad8 {[%emt 0:01:29]} 17. g5 {[%emt 0:02:10]} Bxf3 {[%emt 0:07:20]} 18. Bxf3 {[%emt 0:01:48]} fxg5 {[%emt 0:04:28]} 19. hxg5 {[%emt 0:00:39]} exd4 {[%emt 0:00:18]} 20. Be4 {[%emt 0:06:06]} Nc5 {[%emt 0:01:40]} 21. Bxh7 {[%emt 0:04:05]} Rh8 {[%emt 0:00:09]} 22. Rdh1 {[%emt 0:01:10]} Ne6 {[%emt 0:01:51]} 23. Bd3 {[%emt 0:03:07]} Rxh3 {[%emt 0:01:08]} 24. Rxh3 {[%emt 0:00:23]} Nxg5 {[%emt 0:01:22]} 25. Rg3 {[%emt 0:00:16]} Kf6 {[%emt 0:00:08]} 26. Rg4 {[%emt 0:02:54]} Re8 {[%emt 0:04:35]} 27. b3 {[%emt 0:01:15]} c5 {[%emt 0:00:56]} 28. Rf4+ {[%emt 0:00:50]} Ke7 {[%emt 0:01:32]} 29. Rf5 {[%emt 0:01:38]} Ne6 {[%emt 0:02:42]} 30. Bb5 {[%emt 0:01:06]} Rh8 {[%emt 0:01:12]} 31. Rd5 {[%emt 0:00:24]} Rd8 {[%emt 0:03:17]} 32. Re5 {[%emt 0:01:38]} Kf6 {[%emt 0:01:57]} 33. Rh5 {[%emt 0:01:08]} Rg8 {[%emt 0:01:46]} 34. Bd3 {[%emt 0:02:21]} Rg5 {[%emt 0:04:01]} 35. Rh8 {[%emt 0:01:38]} Rd5 {[%emt 0:03:31]} 36. Bc4 {[%emt 0:06:20]} Rd8 {[%emt 0:01:05]} 37. Rh4 {[%emt 0:01:29]} Rg8 {[%emt 0:00:48]} 38. Rh5 {[%emt 0:01:33]} Ke7 {[%emt 0:02:34]} 39. Re5 {[%emt 0:02:12]} Rg5 {[%emt 0:01:18]} 40. Re1 {[%emt 0:01:19]} Rf5 {[%emt 0:00:48]} 41. Rf1 {[%emt 0:01:26]} Ng5 {[%emt 0:03:21]} 42. Bd3 {[%emt 0:00:37]} Rf4 {[%emt 0:00:29]} 43. Kd2 {[%emt 0:02:10]} Ne4+ {[%emt 0:00:29]} 44. Ke1 {[%emt 0:01:16]} Nc3 {[%emt 0:01:37]} 45. a4 {[%emt 0:00:55]} Ne4 {[%emt 0:00:53]} 46. Ke2 {[%emt 0:01:51]} Nc3+ {[%emt 0:00:28]} 47. Ke1 {[%emt 0:00:16]} Kf6 {[%emt 0:00:33]} 48. Kd2 {[%emt 0:01:01]} Kg5 {[%emt 0:00:44]} 49. Rg1+ {[%emt 0:01:54]} Kh4 {[%emt 0:00:59]} 50. Ke1 {[%emt 0:01:15]} Ne4 {[%emt 0:00:22]} 51. Rh1+ {[%emt 0:01:13]} Kg4 {[%emt 0:00:51]} 52. Be2+ {[%emt 0:01:19]} Kg5 {[%emt 0:00:44]} 53. Rh2 {[%emt 0:00:41]} Nc3 {[%emt 0:02:07]} 54. Bd3 {[%emt 0:01:21]} Rh4 {[%emt 0:01:16]} 55. Rg2+ {[%emt 0:01:53]} Kf4 {[%emt 0:00:20]} 56. Rg7 {[%emt 0:01:38]} Rh1+ {[%emt 0:01:55]} 57. Bf1 {[%emt 0:00:31]} f5 {[%emt 0:00:47]} 58. Rxa7 {[%emt 0:01:30]} Kf3 {[%emt 0:01:05]} 59. Rb7 {[%emt 0:02:24]} Nd5 {[%emt 0:01:11]} 60. Rg7 {[%emt 0:02:32]} f4 {[%emt 0:01:05]} 61. Rd7 {[%emt 0:00:40]} Nb4 {[%emt 0:00:08]} 62. Rb7 {[%emt 0:01:50]} Nxc2+ {[%emt 0:00:08]} 63. Kd2 {[%emt 0:00:05]} Rxf1 {[%emt 0:00:14]} 64. Kxc2 {[%emt 0:01:07]} Rxf2+ {[%emt 0:00:18]} 65. Kd3 {[%emt 0:00:02]} Re2 {[%emt 0:00:18]} 66. Rxb6 {[%emt 0:00:55]} Kf2 {[%emt 0:00:05]} 67. a5 {[%emt 0:00:34]} Ra2 {[%emt 0:02:12]} 68. a6 {[%emt 0:00:00]} f3 {[%emt 0:01:12]} 69. Rc6 {[%emt 0:00:44]} Ke1 {[%emt 0:00:00]} 70. Re6+ {[%emt 0:01:22]} Kd1 {[%emt 0:00:00]} 71. Rf6 {[%emt 0:00:23]} f2 {[%emt 0:00:20]} 72. a7 {[%emt 0:00:26]} Rxa7 {[%emt 0:02:46]} 73. Rxf2 {[%emt 0:00:07]} Ke1 {[%emt 0:00:05]} 74. Rf5 {[%emt 0:01:11]} Rc7 {[%emt 0:00:51]} 75. Rd5 {[%emt 0:00:39]} 1/2-1/2